bitfinex/quotes_BTCUSD_20260126
["timestamp","ask_amount","ask_price","bid_price","bid_amount"]
[1769452892134,0.03,88107.0,88093.0,0.02465315]
[1769452892324,0.04134983,88107.0,88093.0,0.66255058]
[1769452892874,0.01134996,88106.0,88093.0,0.66255058]
[1769452893080,0.03,88105.0,88093.0,0.66255058]
[1769452894144,0.03,88104.0,88093.0,0.66255058]
[1769452894376,0.001,88107.0,88093.0,0.66255058]
[1769452894543,0.001,88107.0,88096.0,0.02465315]
[1769452894721,0.001,88107.0,88099.0,0.63789743]
[1769452894927,0.001,88107.0,88101.0,0.66255058]
[1769452895131,0.03,88118.0,88102.0,0.66255058]
[1769452895333,0.03,88116.0,88103.0,0.02465315]
[1769452895755,0.001,88105.0,88102.0,0.63789743]
[1769452895956,0.03,88114.0,88097.0,0.02465315]
[1769452896157,0.03,88114.0,88098.0,0.02465315]
[1769452896358,0.03,88114.0,88099.0,0.66255058]
[1769452896763,0.03,88113.0,88099.0,0.63789743]
[1769452897082,0.03,88113.0,88088.0,0.01135228]
[1769452897083,0.03,88113.0,88101.0,0.63789743]
[1769452897790,0.001,88116.0,88101.0,0.63789743]
[1769452898078,0.03,88118.0,88101.0,0.63789743]
[1769452898841,0.05410925,88118.0,88101.0,0.63789743]
[1769452899156,0.07829721,88118.0,88101.0,0.63789743]
[1769452899605,0.07729721,88118.0,88101.0,0.63789743]
[1769452899928,0.05510925,88118.0,88101.0,0.63789743]
[1769452901149,0.11312099,88117.0,88101.0,0.63789743]
[1769452901362,0.05410925,88118.0,88101.0,0.63789743]
[1769452901363,0.03,88116.0,88101.0,0.63789743]
[1769452901883,0.10161324,88127.0,88101.0,0.63789743]
[1769452902098,0.12447049,88126.0,88105.0,0.63789743]
[1769452902291,0.001,88117.0,88107.0,0.63789743]
[1769452902502,0.020736,88130.0,88107.0,0.66255058]
[1769452902710,0.08092148,88127.0,88107.0,0.66255058]
[1769452902920,0.11320378,88126.0,88107.0,0.71214009]
[1769452903170,0.180617,88137.0,88107.0,0.04958951]
[1769452903495,0.45542811,88244.0,88131.0,0.63789743]
[1769452903496,0.03,88149.0,88131.0,0.63789743]
[1769452903698,0.03,88149.0,88134.0,0.63789743]
[1769452903884,0.03,88149.0,88135.0,0.02465315]
[1769452904106,0.03,88149.0,88136.0,0.07079906]
[1769452904313,0.03,88148.0,88136.0,0.07079906]
[1769452904442,0.03,88144.0,88136.0,0.07079906]
[1769452904644,0.03,88144.0,88135.0,0.02465315]
[1769452904875,0.04134507,88144.0,88135.0,0.02465315]
[1769452905116,0.03,88142.0,88135.0,0.02465315]
[1769452905319,0.03,88142.0,88129.0,0.68333743]
[1769452905518,0.03,88140.0,88129.0,0.68333743]
[1769452905683,0.03,88138.0,88120.0,0.17444]
[1769452905883,0.03748002,88135.0,88121.0,0.04544]
[1769452906345,0.001,88142.0,88135.0,0.03465315]
[1769452906501,0.001,88142.0,88136.0,0.02465315]
[1769452906703,0.00748002,88137.0,88110.0,0.63789743]
[1769452906931,0.01173954,88138.0,88110.0,0.63789743]
[1769452906932,0.03,88136.0,88119.0,0.02465315]
[1769452907131,0.03,88136.0,88122.0,0.63789743]
[1769452907331,0.03,88136.0,88126.0,0.63789743]
[1769452907528,0.03,88136.0,88128.0,0.02465315]
[1769452907706,0.03,88136.0,88129.0,0.02465315]
[1769452907915,0.031,88135.0,88129.0,0.02465315]
[1769452908430,0.03,88135.0,88129.0,0.02465315]
[1769452908804,0.03,88134.0,88129.0,0.02465315]
[1769452909001,0.03,88134.0,88132.0,0.63663591]
[1769452909223,0.03,88134.0,88133.0,0.02292809]
[1769452909434,0.03,88134.0,88127.0,0.02292809]
[1769452909865,0.01173954,88138.0,88128.0,0.63663591]
[1769452909866,0.03,88133.0,88128.0,0.63663591]
[1769452910117,0.03,88133.0,88116.0,0.17444]
[1769452910290,0.03,88133.0,88118.0,0.02292809]
[1769452910461,0.03,88133.0,88120.0,0.02292809]
[1769452910662,0.03,88133.0,88123.0,0.63663591]
[1769452910897,0.03,88137.0,88124.0,0.02292809]
[1769452912215,0.03757099,88143.0,88124.0,0.02292809]
[1769452912440,0.03757099,88143.0,88126.0,0.02292809]
[1769452912573,0.03757099,88143.0,88127.0,0.63663591]
[1769452912574,0.03,88143.0,88127.0,0.63663591]
[1769452912773,0.00757099,88153.0,88131.0,0.63663591]
[1769452913022,0.00757099,88153.0,88134.0,0.02292809]
[1769452913262,0.03,88152.0,88137.0,0.02292809]
[1769452913460,0.03,88152.0,88139.0,0.01118855]
[1769452913632,0.03,88152.0,88139.0,0.00897394]
[1769452913831,0.03,88152.0,88138.0,0.17444]
[1769452914413,0.031,88152.0,88138.0,0.17444]
[1769452914964,0.00757099,88160.0,88140.0,0.63663591]
[1769452915174,0.00757099,88160.0,88141.0,0.659564]
[1769452915406,0.00757099,88160.0,88141.0,0.63663591]
[1769452915554,0.00757099,88160.0,88144.0,0.02292809]
[1769452915757,0.03,88159.0,88145.0,0.02292809]
[1769452915960,0.03,88159.0,88147.0,0.02292809]
[1769452916159,0.03,88159.0,88150.0,0.63663591]
[1769452916476,0.03,88159.0,88153.0,0.02292809]
[1769452916626,0.01134069,88178.0,88155.0,0.63663591]
[1769452916827,0.03,88176.0,88156.0,0.02292809]
[1769452917046,0.00592592,88175.0,88157.0,0.02292809]
[1769452917596,0.03,88176.0,88159.0,0.02292809]
[1769452917770,0.03,88176.0,88161.0,0.02292809]
[1769452919075,0.48578634,88190.0,88164.0,0.63663591]
[1769452919076,0.00592592,88186.0,88164.0,0.63663591]
[1769452919374,0.00592592,88186.0,88167.0,0.63663591]
[1769452919575,0.00592592,88186.0,88169.0,0.02292809]
[1769452920044,0.03,88189.0,88171.0,0.02292809]
[1769452920276,0.03,88189.0,88173.0,0.63663591]
[1769452920396,0.03,88184.0,88173.0,0.02292809]
[1769452921505,0.03,88184.0,88106.0,0.02292809]
[1769452921506,0.04926704,88168.0,88106.0,0.02292809]
[1769452921705,0.00681552,88122.0,88099.0,0.0796823]
[1769452921908,0.00681552,88131.0,88104.0,0.63663591]
[1769452922124,0.00681552,88131.0,88108.0,0.02292809]
[1769452922409,0.27232858,88131.0,88109.0,0.1744]
[1769452922601,0.02422595,88131.0,88110.0,0.63663591]
[1769452922931,0.03,88125.0,88111.0,0.659564]
[1769452923395,0.04134751,88125.0,88111.0,0.659564]
[1769452923596,0.0867393,88123.0,88111.0,0.659564]
[1769452923762,0.03,88120.0,88109.0,0.1744]
[1769452924689,0.03,88119.0,88109.0,0.1744]
[1769452925483,0.03,88119.0,88109.0,0.1754]
[1769452925681,0.03,88118.0,88109.0,0.1754]
[1769452926046,0.01134751,88125.0,88109.0,0.1754]
[1769452926264,0.0512157,88124.0,88109.0,0.1754]
[1769452926468,0.01134777,88123.0,88107.0,0.63663591]
[1769452926818,0.06808601,88124.0,88105.0,0.02292809]
[1769452926819,0.03,88124.0,88108.0,0.85647591]
[1769452926969,0.03,88124.0,88109.0,0.63663591]
[1769452927377,0.02422595,88131.0,88109.0,0.659564]
[1769452927582,0.02422595,88131.0,88110.0,0.63663591]
[1769452927796,0.01,88110.0,88066.0,0.01135512]
[1769452928096,0.03,88102.0,88086.0,0.02292809]
[1769452928511,0.03,88102.0,88086.0,0.659564]
[1769452928889,0.03,88101.0,88086.0,0.659564]
[1769452929517,0.03,88101.0,88086.0,0.6599531]
[1769452929719,0.03,88099.0,88086.0,0.6609531]
[1769452930186,0.03,88099.0,88086.0,0.6599531]
[1769452930736,0.03,88098.0,88086.0,0.6599531]
[1769452931286,0.03,88098.0,88086.0,0.63702501]
[1769452931524,0.03,88098.0,88089.0,0.02292809]
[1769452931721,0.02422595,88111.0,88090.0,0.3100235]
[1769452931939,0.01134829,88119.0,88091.0,0.02292809]
[1769452932084,0.01134867,88116.0,88094.0,0.63663591]
[1769452932287,0.02422595,88115.0,88096.0,0.63663591]
[1769452932564,0.01134829,88119.0,88096.0,0.63663591]
[1769452932759,0.03,88123.0,88098.0,0.63663591]
[1769452932962,0.03,88120.0,88101.0,0.02292809]
[1769452933187,0.03,88120.0,88102.0,0.659564]
[1769452933322,0.03,88120.0,88103.0,0.02292809]
[1769452933507,0.03,88120.0,88104.0,0.659564]
[1769452933923,0.03,88119.0,88104.0,0.659564]
[1769452934956,0.03,88118.0,88104.0,0.659564]
[1769452935899,0.03,88117.0,88104.0,0.659564]
[1769452936885,0.03,88116.0,88104.0,0.659564]
[1769452937655,0.71184806,88116.0,88098.0,0.63663591]
[1769452937871,0.02125462,88116.0,88100.0,0.63663591]
[1769452938075,0.03,88115.0,88101.0,0.00062294]
[1769452938752,0.03,88115.0,88102.0,0.21988]
[1769452939088,0.03,88114.0,88103.0,0.70099959]
[1769452940056,0.03,88113.0,88103.0,0.70099959]
[1769452940692,0.71327163,88123.0,88103.0,0.70099959]
[1769452941322,0.03,88122.0,88103.0,0.70099959]
[1769452941779,0.03,88122.0,88105.0,0.67810118]
[1769452943307,0.74327163,88121.0,88106.0,0.21988]
[1769452945505,0.05348932,88121.0,88106.0,0.89798118]
[1769452945882,0.01,88106.0,88082.0,0.02289841]
[1769452946222,0.01,88106.0,88078.0,0.19733841]
[1769452946223,0.02348932,88098.0,88078.0,0.19733841]
[1769452946387,0.03,88097.0,88084.0,0.67810118]
[1769452946572,0.03,88097.0,88088.0,0.67810118]
[1769452946923,0.02348932,88111.0,88093.0,0.02289841]
[1769452947088,0.02348932,88111.0,88096.0,0.67810118]
[1769452947288,0.03,88110.0,88096.0,0.85254118]
[1769452947489,0.03,88110.0,88097.0,0.04544]
[1769452947652,0.03,88110.0,88101.0,0.02289841]
[1769452947855,0.03,88110.0,88103.0,0.02289841]
[1769452948060,0.03,88110.0,88103.0,0.70099959]
[1769452948260,0.02348932,88123.0,88103.0,0.70099959]
[1769452948472,0.71327163,88123.0,88103.0,0.70099959]
[1769452948921,0.71327163,88123.0,88103.0,0.70068034]
[1769452949160,0.02348932,88122.0,88103.0,0.70168034]
[1769452949620,0.71327163,88122.0,88103.0,0.70068034]
[1769452949858,0.71327163,88121.0,88103.0,0.70068034]
[1769452950081,0.02348932,88120.0,88103.0,0.02257916]
[1769452950330,0.71327163,88117.0,88097.0,0.72354118]
[1769452950573,0.71327163,88117.0,88099.0,0.70099959]
[1769452951767,0.71327163,88117.0,88100.0,0.21988]
[1769452951768,0.113396,88116.0,88100.0,0.21988]
[1769452951967,0.71327163,88117.0,88100.0,0.21988]
[1769452952152,0.02348932,88117.0,88101.0,0.70099959]
[1769452953309,0.68978231,88121.0,88101.0,0.70099959]
[1769452953555,0.13689922,88120.0,88102.0,0.70099959]
[1769452953747,0.02348932,88120.0,88102.0,0.70099959]
[1769452954092,0.71327163,88120.0,88102.0,0.70099959]
[1769452954450,0.82668745,88119.0,88100.0,0.21988]
[1769452954670,0.71327163,88119.0,88100.0,0.21988]
[1769452954834,0.71327163,88119.0,88100.0,0.92087959]
[1769452955034,0.71327163,88119.0,88101.0,0.02289841]
[1769452955481,0.07132716,88118.0,88101.0,0.02289841]
[1769452955680,0.07132716,88118.0,88101.0,0.67810118]
[1769452955835,0.11342561,88117.0,88103.0,0.67810118]
[1769452956045,0.11342561,88116.0,88104.0,0.02289841]
[1769452956243,0.11343644,88115.0,88104.0,0.02289841]
[1769452956447,0.07132716,88118.0,88104.0,0.70099959]
[1769452956653,0.11343645,88117.0,88104.0,0.70099959]
[1769452956858,0.11343645,88116.0,88104.0,0.70099959]
[1769452957060,0.13533997,88136.0,88105.0,0.02289841]
[1769452957256,0.02348932,88134.0,88105.0,0.01135009]
[1769452957512,0.1134353,88133.0,88112.0,0.02289841]
[1769452957833,0.1134353,88132.0,88114.0,0.70099959]
[1769452958088,0.1134353,88131.0,88115.0,0.70099959]
[1769452958260,0.1134353,88130.0,88115.0,0.67810118]
[1769452958444,0.03,88129.0,88117.0,0.70099959]
[1769452958623,0.03,88129.0,88118.0,0.17448]
[1769452958999,0.0116731,88143.0,88119.0,0.67810118]
[1769452959225,0.01134584,88138.0,88119.0,0.01289841]
[1769452959432,0.03,88134.0,88119.0,0.01289841]
[1769452959652,0.03,88132.0,88119.0,0.01289841]
[1769452960565,0.71327163,88135.0,88119.0,0.01289841]
[1769452960566,0.03,88131.0,88119.0,0.01289841]
[1769452960798,0.03,88131.0,88119.0,0.67810118]
[1769452961001,0.03,88131.0,88120.0,0.02289841]
[1769452961268,0.0003279,88143.0,88122.0,0.02289841]
[1769452961464,0.80318291,88142.0,88123.0,0.02289841]
[1769452961667,0.80318291,88142.0,88118.0,0.17448]
[1769452961668,0.03,88140.0,88124.0,0.67810118]
[1769452961866,0.03,88138.0,88125.0,0.02289841]
[1769452962113,0.03,88136.0,88125.0,0.02289841]
[1769452963130,0.03,88135.0,88127.0,0.02289841]
[1769452963329,0.03,88135.0,88128.0,0.02289841]
[1769452963562,0.03,88135.0,88128.0,0.70099959]
[1769452964261,0.03,88134.0,88128.0,0.70099959]
[1769452964718,0.03,88134.0,88128.0,0.70199959]
[1769452964918,0.03,88134.0,88128.0,0.001]
[1769452965248,0.0116731,88143.0,88123.0,0.02289841]
[1769452965249,0.03,88133.0,88123.0,0.02289841]
[1769452965422,0.03,88133.0,88125.0,0.02289841]
[1769452965656,0.03,88133.0,88111.0,0.01134932]
[1769452965657,0.03,88133.0,88081.0,0.86875743]
[1769452965876,0.03,88122.0,88100.0,0.67810118]
[1769452966075,0.03,88122.0,88103.0,0.02289841]
[1769452966207,0.03,88122.0,88104.0,0.72354118]
[1769452966409,0.03,88122.0,88105.0,0.02289841]
[1769452966605,0.03,88122.0,88104.0,0.72354118]
[1769452966606,0.03,88122.0,88106.0,0.67810118]
[1769452966810,0.03,88123.0,88107.0,0.67810118]
[1769452967011,0.03,88123.0,88109.0,0.67810118]
[1769452967751,0.03,88122.0,88109.0,0.67810118]
[1769452967956,0.03,88122.0,88109.0,0.70099959]
[1769452968717,0.03,88126.0,88109.0,0.70099959]
[1769452968920,0.03,88121.0,88109.0,0.70099959]
[1769452969319,0.03,88121.0,88109.0,0.02289841]
[1769452969941,0.03,88120.0,88109.0,0.02289841]
[1769452970975,0.03,88124.0,88109.0,0.02289841]
[1769452971917,0.48793498,88125.0,88110.0,0.21988]
[1769452971918,0.65802166,88120.0,88110.0,0.21988]
[1769452972118,0.65802166,88120.0,88111.0,0.04544]
[1769452972315,0.63518713,88120.0,88111.0,0.04544]
[1769452972684,0.08725215,88120.0,88111.0,0.04544]
[1769452972886,0.03,88125.0,88120.0,0.01]
[1769452973302,0.68780207,88125.0,88120.0,0.01]
[1769452973524,0.03,88125.0,88112.0,0.02323255]
[1769452973898,0.03,88124.0,88112.0,0.02323255]
[1769452974732,0.03,88124.0,88112.0,0.7198425]
[1769452974943,0.03,88123.0,88112.0,0.69660995]
[1769452975107,0.03,88123.0,88101.0,0.0113506]
[1769452975108,0.6531573,88118.0,88099.0,0.04544]
[1769452975312,0.03,88115.0,88103.0,0.17444]
[1769452975533,0.03,88113.0,88103.0,0.17444]
[1769452976893,0.03,88112.0,88103.0,0.17444]
[1769452977942,0.03,88111.0,88103.0,0.17444]
[1769452978151,0.03,88111.0,88103.0,0.19767255]
[1769452978926,0.03,88120.0,88103.0,0.19767255]
[1769452979227,0.6831573,88120.0,88103.0,0.19767255]
[1769452979550,0.6831573,88120.0,88103.0,0.19867255]
[1769452980057,0.6831573,88120.0,88103.0,0.19767255]
[1769452980674,0.76131617,88120.0,88103.0,0.19767255]
[1769452981534,0.6831573,88120.0,88103.0,0.19767255]
[1769452981976,0.6831573,88120.0,88104.0,0.02323255]
[1769452986885,0.03,88119.0,88105.0,0.0244952]
[1769452987923,0.03,88121.0,88105.0,0.0244952]
[1769452990106,0.03,88120.0,88105.0,0.0244952]
[1769452992130,0.6531573,88122.0,88105.0,0.0244952]
[1769452992338,0.03,88121.0,88105.0,0.0244952]
[1769452992554,0.6831573,88121.0,88105.0,0.0244952]
[1769452993406,0.03,88132.0,88105.0,0.0289925]
[1769452993620,0.03,88130.0,88121.0,0.01]
[1769452993829,0.03,88130.0,88115.0,0.0289925]
[1769452993830,0.03,88128.0,88115.0,0.0289925]
[1769452994462,0.03,88126.0,88115.0,0.0289925]
[1769452995581,0.03,88125.0,88115.0,0.0289925]
[1769452996499,0.03,88124.0,88115.0,0.0289925]
[1769452997602,0.03,88123.0,88115.0,0.0289925]
[1769452998021,0.2429799,88135.0,88123.0,0.0389925]
[1769452998227,0.2429799,88135.0,88123.0,0.0289925]
[1769452998228,0.11353167,88134.0,88123.0,0.0289925]
[1769452998450,0.11353167,88133.0,88123.0,0.0289925]
[1769452998646,0.14353167,88132.0,88123.0,0.0289925]
[1769452998849,0.03,88130.0,88123.0,0.0289925]
[1769452999048,0.03,88130.0,88120.0,0.17444]
[1769452999879,0.03,88134.0,88120.0,0.17444]
[1769453000082,0.03,88132.0,88120.0,0.17444]
[1769453000724,0.03,88132.0,88120.0,0.2034325]
[1769453000927,0.03,88132.0,88122.0,0.0289925]
[1769453001106,0.0002799,88135.0,88122.0,0.0289925]
[1769453001107,0.03,88131.0,88122.0,0.0289925]
[1769453001663,0.03,88131.0,88124.0,0.0289925]
[1769453001823,0.0002799,88135.0,88131.0,0.01]
[1769453002256,0.0002799,88135.0,88132.0,0.0289925]
[1769453004148,0.0002799,88135.0,88132.0,0.66810892]
[1769453004343,0.0002799,88135.0,88126.0,0.66810892]
[1769453004546,0.0002799,88135.0,88127.0,0.02479807]
[1769453008916,0.0002799,88135.0,88125.0,0.04544]
[1769453009485,0.0002799,88135.0,88073.0,0.02479807]
[1769453009486,0.03,88101.0,88073.0,0.02479807]
[1769453009683,0.37983464,88100.0,88077.0,0.02479807]
[1769453009895,0.37983464,88100.0,88079.0,0.02479807]
[1769453009896,0.03,88097.0,88079.0,0.02479807]
[1769453010100,0.391102,88100.0,88079.0,0.02479807]
[1769453010101,0.7001836,88095.0,88080.0,0.00072077]
[1769453010300,0.7001836,88095.0,88079.0,0.02479807]
[1769453010429,0.03,88090.0,88079.0,0.02479807]
[1769453010836,0.01135176,88092.0,88090.0,0.01]
[1769453011050,0.03,88084.0,88069.0,0.66810892]
[1769453011261,0.03,88082.0,88068.0,0.17444]
[1769453011442,0.67833837,88083.0,88068.0,0.17444]
[1769453011443,0.03,88080.0,88068.0,0.17444]
[1769453012065,0.03,88080.0,88068.0,0.86734699]
[1769453012487,0.04135279,88084.0,88068.0,0.86734699]
[1769453012688,0.03,88081.0,88068.0,0.86734699]
[1769453013235,0.03,88079.0,88068.0,0.69290699]
[1769453013372,0.03,88079.0,88064.0,0.17444]
[1769453013582,0.03,88079.0,88058.0,0.02479807]
[1769453013583,0.03,88077.0,88058.0,0.02479807]
[1769453013786,0.03,88071.0,88056.0,0.02503737]
[1769453013992,0.03,88069.0,88056.0,0.02503737]
[1769453014605,0.03,88069.0,88057.0,0.02479807]
[1769453014823,0.03,88069.0,88058.0,0.69290699]
[1769453015487,0.03,88068.0,88058.0,0.69290699]
[1769453016508,0.03,88067.0,88058.0,0.69290699]
[1769453017684,0.03,88066.0,88058.0,0.69290699]
[1769453018296,0.03,88066.0,88056.0,0.0002393]
[1769453018853,0.01135447,88071.0,88056.0,0.0002393]
[1769453018854,0.03,88065.0,88056.0,0.0002393]
[1769453019054,0.03,88065.0,88056.0,0.02503737]
[1769453019238,0.03,88065.0,88057.0,0.69290699]
[1769453019837,0.03,88064.0,88057.0,0.69290699]
[1769453020870,0.03,88063.0,88057.0,0.69290699]
[1769453021899,0.03,88072.0,88057.0,0.69390699]
[1769453022276,0.03,88070.0,88057.0,0.69290699]
[1769453022697,0.03,88070.0,88057.0,0.69390699]
[1769453023902,0.03,88070.0,88058.0,0.00035125]
[1769453024266,0.05469936,88071.0,88058.0,0.00035125]
[1769453024267,0.03,88068.0,88058.0,0.00035125]
[1769453024475,0.03,88068.0,88057.0,0.02479807]
[1769453024476,0.03,88068.0,88057.0,0.02514932]
[1769453025519,0.04135524,88065.0,88056.0,0.0002393]
[1769453025722,0.03,88063.0,88056.0,0.0002393]
[1769453026199,0.03,88063.0,88044.0,0.02519807]
[1769453026413,0.03,88063.0,88045.0,0.69330699]
[1769453026614,0.03,88062.0,88046.0,0.69290699]
[1769453027242,0.03,88062.0,88050.0,0.47544785]
[1769453027491,0.03,88062.0,88052.0,0.02479807]
[1769453027691,0.67353552,88077.0,88055.0,0.66810892]
[1769453027917,0.02399142,88074.0,88056.0,0.00113564]
[1769453028120,0.67353552,88071.0,88051.0,0.00113564]
[1769453028326,0.02399142,88070.0,88052.0,0.69290699]
[1769453028474,0.02399142,88070.0,88053.0,0.02593368]
[1769453028687,0.67353552,88069.0,88053.0,0.02593368]
[1769453028870,0.03,88068.0,88053.0,0.67119215]
[1769453029069,0.03,88068.0,88053.0,0.67005654]
[1769453029834,0.03,88066.0,88053.0,0.67005654]
[1769453030743,0.70353552,88069.0,88053.0,0.67005654]
[1769453031370,0.03,88069.0,88054.0,0.02422162]
[1769453031497,0.02311002,88078.0,88060.0,0.64525847]
[1769453031698,0.04544,88084.0,88050.0,0.01135718]
[1769453031699,0.03,88080.0,88070.0,0.02422162]
[1769453031916,0.03,88080.0,88072.0,0.02422162]
[1769453032535,0.03,88071.0,88060.0,0.17452]
[1769453032751,0.03446114,88097.0,88069.0,0.02422162]
[1769453032979,0.85466566,88091.0,88072.0,0.64525847]
[1769453033174,0.85466566,88091.0,88073.0,0.08874747]
[1769453033582,0.03,88090.0,88073.0,0.08874747]
[1769453033999,0.71014566,88090.0,88073.0,0.08874747]
[1769453034200,0.48247318,88090.0,88073.0,0.08874747]
[1769453036437,0.48247318,88090.0,88073.0,0.02422162]
[1769453037841,0.0002393,88106.0,88080.0,0.38023271]
[1769453038008,0.03,88097.0,88080.0,0.38023271]
[1769453039395,0.11320729,88091.0,88082.0,0.64525847]
[1769453039530,0.4844499,88098.0,88083.0,0.02422162]
[1769453040315,0.03,88097.0,88083.0,0.02422162]
[1769453040868,0.03,88097.0,88085.0,0.02422162]
[1769453041071,0.03,88097.0,88088.0,0.64525847]
[1769453041317,0.03,88096.0,88089.0,0.02422162]
[1769453041885,0.03,88096.0,88081.0,0.02422162]
[1769453042271,0.03,88095.0,88084.0,0.64525847]
[1769453042635,0.03,88095.0,88085.0,0.02522162]
[1769453042844,0.68196957,88061.0,88044.0,0.0004]
[1769453043042,0.41017901,88060.0,88045.0,0.02462162]
[1769453043246,0.03,88060.0,88045.0,0.02462162]
[1769453043816,0.03,88055.0,88045.0,0.02462162]
[1769453044013,0.03,88051.0,88045.0,0.0004]
[1769453045061,0.03,88050.0,88045.0,0.0004]
[1769453046122,0.03,88049.0,88045.0,0.0004]
[1769453047111,0.03,88048.0,88045.0,0.0004]
[1769453047471,0.01135602,88059.0,88045.0,0.0004]
[1769453047670,0.71172601,88060.0,88045.0,0.0004]
[1769453048023,0.09070582,88065.0,88045.0,0.0004]
[1769453048232,0.03,88064.0,88047.0,0.02422162]
[1769453048436,0.03,88064.0,88045.0,0.0004]
[1769453048437,0.12070582,88064.0,88048.0,0.64525847]
[1769453048649,0.12070582,88064.0,88045.0,0.0004]
[1769453048650,0.12070582,88064.0,88050.0,0.02422162]
[1769453048898,0.03,88064.0,88050.0,0.02422162]
[1769453049091,0.03,88062.0,88050.0,0.02422162]
[1769453049827,0.03,88060.0,88050.0,0.02422162]
[1769453050780,0.001,88062.0,88050.0,0.02422162]
[1769453050781,0.03,88059.0,88050.0,0.02422162]
[1769453051194,0.03,88057.0,88050.0,0.02422162]
[1769453051396,0.03,88055.0,88050.0,0.64525847]
[1769453051612,0.03,88053.0,88051.0,0.02422162]
[1769453052019,0.03,88053.0,88049.0,0.02422162]
[1769453052262,0.001,88060.0,88053.0,0.01]
[1769453052458,0.11317016,88059.0,88053.0,0.01]
[1769453052704,0.14317016,88058.0,88046.0,0.64541677]
[1769453052907,0.03,88056.0,88046.0,0.64541677]
[1769453053131,0.03,88054.0,88046.0,0.64541677]
[1769453053339,0.02311002,88065.0,88049.0,0.02422162]
[1769453054096,0.03,88064.0,88050.0,0.64525847]
[1769453055330,0.03,88064.0,88050.0,0.04548]
[1769453055629,0.70814026,88064.0,88050.0,0.04548]
[1769453056588,0.76990899,88064.0,88050.0,0.04548]
[1769453056978,0.03,88064.0,88050.0,0.04548]
[1769453057182,0.03,88064.0,88051.0,0.64525847]
[1769453060410,0.03,88064.0,88050.0,0.04548]
[1769453061951,0.03,88063.0,88051.0,0.69092996]
[1769453062312,0.03,88063.0,88051.0,0.66693291]
[1769453062515,0.03,88063.0,88052.0,0.69092996]
[1769453062834,0.03,88067.0,88052.0,0.69092996]
[1769453065232,0.03,88065.0,88052.0,0.69092996]
[1769453065427,0.03,88063.0,88052.0,0.69092996]
[1769453066000,0.03,88063.0,88053.0,0.02399705]
[1769453066169,0.03,88063.0,88054.0,0.17456]
[1769453066376,0.03,88073.0,88054.0,0.17456]
[1769453066517,0.03,88071.0,88055.0,0.02399705]
[1769453066722,0.03,88069.0,88055.0,0.02399705]
[1769453066964,0.03,88067.0,88055.0,0.02399705]
[1769453067925,0.03,88066.0,88055.0,0.02399705]
[1769453068241,0.03,88066.0,88054.0,0.17456]
[1769453068242,0.03,88066.0,88046.0,0.0001583]
[1769453068441,0.50427049,88064.0,88047.0,0.24403705]
[1769453068697,0.50427049,88064.0,88048.0,0.02399705]
[1769453068883,0.50427049,88064.0,88048.0,0.66693291]
[1769453069080,0.50427049,88064.0,88049.0,0.02399705]
[1769453069281,0.03,88064.0,88050.0,0.02399705]
[1769453069448,0.03,88063.0,88050.0,0.02399705]
[1769453070617,0.03,88062.0,88050.0,0.02399705]
[1769453071522,0.03,88061.0,88050.0,0.02399705]
[1769453072061,0.03,88061.0,88052.0,0.02399705]
[1769453072429,0.03,88060.0,88053.0,0.17456]
[1769453072994,0.03,88060.0,88053.0,0.19855705]
[1769453073395,0.03,88069.0,88053.0,0.19855705]
[1769453073591,0.03,88069.0,88054.0,0.17456]
[1769453073793,0.03,88069.0,88058.0,0.02399705]
[1769453074689,0.47427049,88073.0,88058.0,0.02399705]
[1769453074690,0.03,88068.0,88058.0,0.02399705]
[1769453075542,0.03,88067.0,88058.0,0.02399705]
[1769453076123,0.03,88067.0,88054.0,0.17456]
[1769453076691,0.03,88066.0,88054.0,0.19855705]
[1769453077710,0.03,88065.0,88054.0,0.19855705]
[1769453078109,0.01135395,88075.0,88054.0,0.19855705]
[1769453078313,0.28217775,88072.0,88054.0,0.19855705]
[1769453078534,0.28217775,88070.0,88054.0,0.19855705]
[1769453078741,0.03,88069.0,88054.0,0.19855705]
[1769453078960,0.31217775,88065.0,88055.0,0.17456]
[1769453079172,0.31217775,88065.0,88050.0,0.04548]
[1769453079173,0.14882492,88062.0,88050.0,0.03978]
[1769453079369,0.17882492,88061.0,88050.0,0.03970405]
[1769453079753,0.17882492,88059.0,88046.0,0.0001583]
[1769453080162,0.24156437,88059.0,88046.0,0.0001583]
[1769453080771,0.03,88055.0,88046.0,0.0001583]
[1769453081097,0.03,88053.0,88046.0,0.0001583]
[1769453083167,0.3804383,88060.0,88046.0,0.0001583]
[1769453083168,0.03,88059.0,88046.0,0.0001583]
[1769453083368,0.17882492,88059.0,88046.0,0.0001583]
[1769453084614,0.03,88058.0,88046.0,0.0001583]
[1769453084818,0.03,88058.0,88046.0,0.02515829]
[1769453085431,0.03,88058.0,88047.0,0.02499999]
[1769453085631,0.03,88057.0,88047.0,0.02499999]
[1769453086376,0.00035136,88069.0,88050.0,0.02499999]
[1769453086507,0.32338492,88071.0,88050.0,0.02499999]
[1769453086508,0.11364096,88068.0,88051.0,0.02499999]
[1769453086723,0.14364096,88067.0,88053.0,0.02499999]
[1769453086929,0.03,88067.0,88053.0,0.02499999]
[1769453087816,0.03,88066.0,88053.0,0.02499999]
[1769453088757,0.03,88065.0,88053.0,0.02499999]
[1769453089130,0.03,88063.0,88053.0,0.02499999]
[1769453090242,0.03,88062.0,88053.0,0.67719129]
[1769453091323,0.03,88061.0,88053.0,0.67719129]
[1769453092483,0.03,88060.0,88053.0,0.67719129]
[1769453093597,0.03,88068.0,88060.0,0.00263999]
[1769453093826,0.03,88066.0,88060.0,0.00263999]
[1769453094029,0.03,88064.0,88060.0,0.00263999]
[1769453095033,0.03,88070.0,88060.0,0.00263999]
[1769453095236,0.03,88068.0,88055.0,0.6521913]
[1769453095436,0.03,88066.0,88056.0,0.02724849]
[1769453095616,0.03,88064.0,88057.0,0.02724849]